Workbook

Sheet TMPO Calculator
B1: Twelve-Month Payment Option
B3: The "Estimating Your Deduction for 24 Equal Paychecks" calculator below will calculate the deduction amounts you should elect in order to receive approximately equal net payments for 24 pay periods.
B5: Once you decide upon your twelve-month payment option deduction amount(s), please complete the Twelve-Month Payment Option form located on the Human Resources website. You may also wish to refer to the Twelve-Month Payment Option Plan FAQs document, also located on the Human Resources website. To go to the Human Resources website, you may click on the following link:
B7: http://hr.ucf.edu
B9: Using the Estimating Your Deduction for 24 Equal Paychecks Calculator
B11: To use the "Estimating Your Deduction for 24 Equal Paychecks" calculator, you will enter your net pay below and any State benefits premiums that are double deducted in the spring on the "State Benefits Premiums" worksheet. Your net pay and State benefits premiums can be found on your pay advice. If you would like instructions on how to find your pay advice, click on the following link:
B13: http://hr.ucf.edu/files/Pay_Advice_Access_Presentation.pdf
B15: Your net pay is located on your pay advice in the middle of the page on the right side under "NET PAY." Your State benefits premiums are located in the middle of the page on the left side under "BEFORE-TAX DEDUCTIONS" and in the middle of the page in the center under "AFTER-TAX DEDUCTIONS." When determining the net pay to enter, use a "normal" pay period - one that does not contain double deductions for insurances. Keep in mind that there are a number of variables that will affect your net pay. For example, double deductions, changes to your benefit elections, taxes, pay increases and decreases, dual compensation, supplemental payments, awards and retroactive payments, etc. will produce variances in your net pay.
B17: State benefits for nine-month faculty members are double deducted between February and May of each year. If you are subject to double deductions, enter your State benefit premiums on the "State Benefits Premiums" worksheet. The worksheet will sum the deductions you enter. This figure, which will be automatically populated in the "State Benefits Premiums" box below, will be used to estimate your net pay for the paychecks where double deductions are taken.
B19: Estimating Your Deduction for 24 Approximately Equal Paychecks
B21: Enter Your Net Pay Below
B22: 1404.03 | F22: Enter Net Pay from Pay Advice *from a January Paydate for the current calendar year (pre-double deduction period which begins in February)
B24: State Benefits Premiums
B25: =+'State Benefits Premiums'!F32 -> 90 | F25: Sum of all State Benefits Deductions (from State Benefits Premiums worksheet)
B29: Current Net Pay on "Normal" Paychecks | D29: Fall Set-Aside Deduction Amount | F29: Spring Set-Aside Deduction Amount | H29: New Estimated Net Pay on 11 Fall Paychecks | J29: Estimated Net Pay on 8 Spring Paychecks | L29: Estimated Net Pay on 5 Summer Paychecks
B30: =Pre_Double_Deduction_Net_Amount -> 1404.03 | D30: =(Pre_Double_Deduction_Net_Amount-(((Pre_Double_Deduction_Net_Amount*19)-(Sum_of_State_Benefits_Deductions*8))/24)) -> 322.50625 | F30: =Pre_Double_Deduction_Net_Amount-Sum_of_State_Benefits_Deductions-H30 -> 232.50625 | H30: =Pre_Double_Deduction_Net_Amount-Fall_Set_Aside_Deduction_Amount -> 1081.52375 | J30: =Pre_Double_Deduction_Net_Amount-Spring_Set_Aside_Deduction_Amount-Sum_of_State_Benefits_Deductions -> 1081.52375 | L30: =((Fall_Set_Aside_Deduction_Amount*11)+(Spring_Set_Aside_Deduction_Amount*8))/5 -> 1081.52375
B33: If you have any questions regarding this calculator or the Twelve-Month Payment Option, please contact Payroll Services at payroll@ucf.edu.

Sheet State Benefits Premiums
B1: Twelve-Month Payment Option Calculator State Benefits Premiums Worksheet
B3: Please enter the premiums for each of the following deductions taken from your regular paycheck (a paycheck prior to those that contain double deductions for State benefits).
B8: Deduction Description on Paycheck | D8: Full Deduction Description | F8: Premium Amount from Pay Advice
B9: AFL Sup Cr | D9: AFLAC Supplemental Cancer | F9: 0
B10: AFL Sup IC | D10: AFLAC Supp Intensive Care | F10: 0
B11: Alta
B12: Alta Supp | F12: 0
B13: Col Acc/Pr | D13: Colonial Accident Protection | F13: 0
B14: Col Dis Pr | D14: Colonial Acc Dis Income Prot | F14: 0
B15: Col Sup Cr | D15: Colonial Supplemental Cancer | F15: 0
B16: DDC Reimb | D16: Dependent Day Care Reimb Ac | F16: $
B17: Gab Hs Inc | D17: Gabor Hospital Income | F17: 0
B18: Cigna | F18: 0
F19: 0
F20: 0
B23: HSA | D23: Health Savings Account
B24: LPMRA | D24: Limited Purpose Med Reimb Act
B25: Med Reimb | D25: Medical Reimbursement Acct
B26: PretaxVis | D26: Pretax Vision Plan | F26: 0
B27: PretaxDntl | D27: Pretax Dental Contriubtion | F27: 0
B28: Pretax Hlt | D28: Pretax Health Contribution | F28: 90
B29: Pretax Life | D29: Pretax Basic Life (if less than 1.00 FTE) | F29: 0
F30: 0
F31: 0
B32: Total State Benefits Premiums | F32: =SUM(F9:F31) -> 90

Sheet Breakdown (hidden)
B1: Normal Net Payment | C1: Fall Set-Aside Deductions | D1: Spring Set-Aside Deductions | E1: Spring Double Deductions | F1: New Net Pay
A2: 1 | B2: =Pre_Double_Deduction_Net_Amount -> 1404.03 | C2: =-Fall_Set_Aside_Deduction_Amount -> -322.50625 | F2: =SUM(B2:E2) -> 1081.52375 | G2: 1
A3: 2 | B3: 1404.03 | C3: -322.50625 | F3: 1081.52375 | G3: 2
A4: 3 | B4: 1404.03 | C4: -322.50625 | F4: 1081.52375 | G4: 3
A5: 4 | B5: 1404.03 | C5: -322.50625 | F5: 1081.52375 | G5: 4
A6: 5 | B6: 1404.03 | C6: -322.50625 | F6: 1081.52375 | G6: 5
A7: 6 | B7: 1404.03 | C7: -322.50625 | F7: 1081.52375 | G7: 6
A8: 7 | B8: 1404.03 | C8: -322.50625 | F8: 1081.52375 | G8: 7
A9: 8 | B9: 1404.03 | C9: -322.50625 | F9: 1081.52375 | G9: 8
A10: 9 | B10: 1404.03 | C10: -322.50625 | F10: 1081.52375 | G10: 9
A11: 10 | B11: 1404.03 | C11: -322.50625 | F11: 1081.52375 | G11: 10
A12: 11 | B12: 1404.03 | C12: -322.50625 | F12: 1081.52375 | G12: 11
A13: 12 | B13: 1404.03 | D13: =-Spring_Set_Aside_Deduction_Amount -> -232.50625 | E13: =-Sum_of_State_Benefits_Deductions -> -90 | F13: 1081.52375 | G13: 12
A14: 13 | B14: 1404.03 | D14: -232.50625 | E14: -90 | F14: 1081.52375 | G14: 13
A15: 14 | B15: 1404.03 | D15: -232.50625 | E15: -90 | F15: 1081.52375 | G15: 14
A16: 15 | B16: 1404.03 | D16: -232.50625 | E16: -90 | F16: 1081.52375 | G16: 15
A17: 16 | B17: 1404.03 | D17: -232.50625 | E17: -90 | F17: 1081.52375 | G17: 16
A18: 17 | B18: 1404.03 | D18: -232.50625 | E18: -90 | F18: 1081.52375 | G18: 17
A19: 18 | B19: 1404.03 | D19: -232.50625 | E19: -90 | F19: 1081.52375 | G19: 18
A20: 19 | B20: 1404.03 | D20: -232.50625 | E20: -90 | F20: 1081.52375 | G20: 19
B22: =SUM(B2:B21) -> 26676.57 | C22: =SUM(C2:C21) -> -3547.56875 | D22: =SUM(D2:D21) -> -1860.05 | F22: =-SUM(C22:D22) -> 5407.61875
C24: Balance | F24: Summer
A25: 1 | C25: =F22 -> 5407.61875 | F25: =$C$25/5 -> 1081.52375 | G25: 1
A26: 2 | C26: =C25-F25 -> 4326.095 | F26: =$C$25/5 -> 1081.52375 | G26: 2
A27: 3 | C27: =C26-F26 -> 3244.57125 | F27: =$C$25/5 -> 1081.52375 | G27: 3
A28: 4 | C28: =C27-F27 -> 2163.0475 | F28: =$C$25/5 -> 1081.52375 | G28: 4
A29: 5 | C29: =C28-F28 -> 1081.52375 | F29: =$C$25/5 -> 1081.52375 | G29: 5
C30: =C29-F29 -> 0
